fUST/lending_fUST_20250219
["ID","MTS","AMOUNT","RATE_DAILY","PERIOD"]
[353545029,1739905859225,-528.02,0.00014684,2]
[353545031,1739905859234,-510.83014643,0.00014684,2]
[353545032,1739905859244,-500.0,0.00014684,2]
[353545034,1739905859253,-1810.39,0.00014684,2]
[353545036,1739905859263,-191.0,0.00014687,2]
[353545039,1739905859274,-500.0,0.00014721,2]
[353545041,1739905859283,-1000.0,0.00014721,2]
[353545043,1739905859293,-1000.0,0.00014721,2]
[353545045,1739905859302,-500.0,0.00014767,2]
[353545047,1739905859313,-584.67,0.00014767,2]
[353545049,1739905859322,-786.15,0.00014767,2]
[353545051,1739905859332,-534.797149,0.00014767,2]
[353545053,1739905859341,-500.0,0.00014767,2]
[353545055,1739905859350,-500.0,0.00014767,2]
[353545057,1739905859361,-567.13,0.00014767,2]
[353545059,1739905859371,-535.77,0.00014767,2]
[353545060,1739905859380,-500.0,0.00014767,2]
[353545062,1739905859389,-500.0,0.00014767,2]
[353545064,1739905859398,-500.0,0.00014767,2]
[353545066,1739905859407,-606.93,0.00014767,2]
[353545068,1739905859416,-500.0,0.00014767,2]
[353545070,1739905859426,-500.0,0.00014767,2]
[353545072,1739905859435,-500.0,0.00014767,2]
[353545074,1739905859444,-500.0,0.00014767,2]
[353545076,1739905859453,-778.97,0.00014767,2]
[353545078,1739905859462,-500.0,0.00014767,2]
[353545080,1739905859472,-500.0,0.00014767,2]
[353545082,1739905859481,-5674.76,0.00014767,2]
[353545084,1739905859490,-500.0,0.00014767,2]
[353545086,1739905859499,-500.0,0.00014767,2]
[353545088,1739905859509,-500.0,0.00014767,2]
[353545090,1739905859518,-500.0,0.00014767,2]
[353545092,1739905859527,-500.0,0.00014767,2]
[353545094,1739905859537,-500.0,0.00014767,2]
[353545096,1739905859547,-349.31001524,0.00014767,2]
[353545098,1739905859557,-536.89,0.00014767,2]
[353545100,1739905859568,-2790.27,0.00014767,2]
[353545102,1739905859579,-1226.03,0.00014767,2]
[353545104,1739905859588,-500.0,0.00014767,2]
[353545106,1739905859597,-500.0,0.00014767,2]
[353545108,1739905859607,-647.03,0.00014767,2]
[353545110,1739905859616,-1260.23,0.00014767,2]
[353545112,1739905859625,-647.39,0.00014767,2]
[353545114,1739905859634,-517.07,0.00014767,2]
[353545116,1739905859642,-500.0,0.00014767,2]
[353545118,1739905859652,-1026.38,0.00014767,2]
[353545119,1739905859661,-8379.46,0.00014767,2]
[353545122,1739905859671,-500.0,0.00014767,2]
[353545124,1739905859681,-588.93,0.00014767,2]
[353545126,1739905859690,-1252.55,0.00014767,2]
[353545127,1739905859699,-500.0,0.00014767,2]
[353545129,1739905859708,-500.0,0.00014767,2]
[353545132,1739905859719,-1497.2,0.00014767,2]
[353545134,1739905859729,-500.0,0.00014767,2]
[353545136,1739905859740,-708.02,0.00014767,2]
[353545138,1739905859750,-2867.07,0.00014767,2]
[353545140,1739905859759,-500.0,0.00014767,2]
[353545142,1739905859769,-565.05,0.00014767,2]
[353545144,1739905859779,-500.0,0.00014767,2]
[353545146,1739905859788,-500.0,0.00014767,2]
[353545148,1739905859797,-500.0,0.00014767,2]
[353545149,1739905859806,-26636.36,0.00014767,2]
[353545151,1739905859816,-783.28,0.00014767,2]
[353545153,1739905859826,-500.0,0.00014767,2]
[353545155,1739905859836,-1714.88,0.00014767,2]
[353545158,1739905859846,-978.2,0.00014767,2]
[353545160,1739905859856,-832.65,0.00014767,2]
[353545161,1739905859865,-541.25,0.00014767,2]
[353545163,1739905859874,-528.02,0.00014767,2]
[353545165,1739905859884,-248.68,0.00014767,2]
[353545167,1739905859894,-1810.39,0.00014767,2]
[353545169,1739905859903,-622.0,0.000148,2]
[353545172,1739905859913,-500.0,0.00014849,2]
[353545174,1739905859922,-584.67,0.00014849,2]
[353545176,1739905859932,-786.15,0.00014849,2]
[353545178,1739905859942,-500.0,0.00014849,2]
[353545180,1739905859952,-418.75,0.00014849,2]
[353545182,1739905859961,-567.13,0.00014849,2]
[353545184,1739905859970,-500.0,0.00014849,2]
[353545186,1739905859979,-500.0,0.00014849,2]
[353545188,1739905859989,-500.0,0.00014849,2]
[353545190,1739905859998,-606.93,0.00014849,2]
[353545192,1739905860007,-500.0,0.00014849,2]
[353545194,1739905860017,-500.0,0.00014849,2]
[353545196,1739905860026,-210.53,0.00014849,2]
[353545198,1739905860036,-500.0,0.00014849,2]
[353545200,1739905860046,-778.97,0.00014849,2]
[353545202,1739905860055,-500.0,0.00014849,2]
[353545204,1739905860065,-500.0,0.00014849,2]
[353545206,1739905860075,-5674.76,0.00014849,2]
[353545208,1739905860086,-500.0,0.00014849,2]
[353545210,1739905860099,-500.0,0.00014849,2]
[353545212,1739905860108,-500.0,0.00014849,2]
[353545214,1739905860118,-500.0,0.00014849,2]
[353545216,1739905860127,-500.0,0.00014849,2]
[353545218,1739905860136,-175.6,0.00014849,2]
[353545220,1739905860146,-536.89,0.00014849,2]
[353545222,1739905860156,-2790.27,0.00014849,2]
[353545224,1739905860165,-1226.03,0.00014849,2]
[353545226,1739905860174,-542.51,0.00014849,2]
[353545228,1739905860184,-500.0,0.00014849,2]
[353545230,1739905860193,-647.03,0.00014849,2]
[353545232,1739905860204,-647.39,0.00014849,2]
[353545234,1739905860214,-1260.23,0.00014849,2]
[353545236,1739905860224,-517.07,0.00014849,2]
[353545238,1739905860233,-500.0,0.00014849,2]
[353545240,1739905860243,-1026.38,0.00014849,2]
[353545242,1739905860252,-8379.46,0.00014849,2]
[353545244,1739905860262,-500.0,0.00014849,2]
[353545246,1739905860272,-588.93,0.00014849,2]
[353545248,1739905860283,-1252.55,0.00014849,2]
[353545250,1739905860293,-206.1,0.00014849,2]
[353545252,1739905860302,-500.0,0.00014849,2]
[353545254,1739905860312,-1497.2,0.00014849,2]
[353545256,1739905860322,-500.0,0.00014849,2]
[353545258,1739905860333,-708.02,0.00014849,2]
[353545260,1739905860343,-2867.07,0.00014849,2]
[353545262,1739905860353,-500.0,0.00014849,2]
[353545264,1739905860363,-565.05,0.00014849,2]
[353545266,1739905860372,-500.0,0.00014849,2]
[353545268,1739905860382,-500.0,0.00014849,2]
[353545270,1739905860391,-500.0,0.00014849,2]
[353545272,1739905860400,-26636.36,0.00014849,2]
[353545274,1739905860411,-783.28,0.00014849,2]
[353545276,1739905860421,-500.0,0.00014849,2]
[353545278,1739905860430,-1714.88,0.00014849,2]
[353545280,1739905860440,-978.2,0.00014849,2]
[353545282,1739905860451,-832.65,0.00014849,2]
[353545284,1739905860460,-541.25,0.00014849,2]
[353545286,1739905860469,-528.02,0.00014849,2]
[353545288,1739905860478,-500.0,0.00014873,2]
[353545290,1739905860488,-393924.466868,0.000149,2]
[353545293,1739905860498,-500.0,0.00014931,2]
[353545295,1739905860507,-584.67,0.00014931,2]
[353545297,1739905860517,-786.15,0.00014931,2]
[353545299,1739905860527,-500.0,0.00014931,2]
[353545300,1739905860535,-567.13,0.00014931,2]
[353545303,1739905860545,-500.0,0.00014931,2]
[353545305,1739905860555,-500.0,0.00014931,2]
[353545306,1739905860564,-500.0,0.00014931,2]
[353545318,1739905860664,-606.93,0.00014931,2]
[353545320,1739905860674,-500.0,0.00014931,2]
[353545322,1739905860684,-500.0,0.00014931,2]
[353545324,1739905860693,-500.0,0.00014931,2]
[353545326,1739905860703,-778.97,0.00014931,2]
[353545328,1739905860711,-500.0,0.00014931,2]
[353545330,1739905860721,-500.0,0.00014931,2]
[353545332,1739905860730,-5674.76,0.00014931,2]
[353545334,1739905860740,-626.0,0.00014931,2]
[353545336,1739905860749,-500.0,0.00014931,2]
[353545338,1739905860759,-357.5,0.00014931,2]
[353545340,1739905860768,-500.0,0.00014931,2]
[353545342,1739905860777,-500.0,0.00014931,2]
[353545344,1739905860787,-536.89,0.00014931,2]
[353545346,1739905860796,-2790.27,0.00014931,2]
[353545348,1739905860806,-1226.03,0.00014931,2]
[353545350,1739905860815,-632.7,0.00014931,2]
[353545352,1739905860825,-647.03,0.00014931,2]
[353545354,1739905860836,-647.39,0.00014931,2]
[353545356,1739905860846,-1260.23,0.00014931,2]
[353545357,1739905860855,-517.07,0.00014931,2]
[353545358,1739905860864,-500.0,0.00014931,2]
[353545359,1739905860874,-1026.38,0.00014931,2]
[353545360,1739905860883,-8379.46,0.00014931,2]
[353545361,1739905860894,-393.12,0.00014931,2]
[353545362,1739905860904,-588.93,0.00014931,2]
[353545363,1739905860914,-1252.55,0.00014931,2]
[353545364,1739905860924,-500.0,0.00014931,2]
[353545365,1739905860935,-1497.2,0.00014931,2]
[353545366,1739905860945,-500.0,0.00014931,2]
[353545367,1739905860955,-708.02,0.00014931,2]
[353545368,1739905860964,-2867.07,0.00014931,2]
[353545370,1739905860974,-500.0,0.00014931,2]
[353545372,1739905860983,-565.05,0.00014931,2]
[353545374,1739905860993,-629.53,0.00014931,2]
[353545376,1739905861003,-500.0,0.00014931,2]
[353545378,1739905861013,-26636.36,0.00014931,2]
[353545380,1739905861023,-783.28,0.00014931,2]
[353545382,1739905861033,-500.0,0.00014931,2]
[353545384,1739905861042,-1714.88,0.00014931,2]
[353545386,1739905861052,-978.2,0.00014931,2]
[353545388,1739905861062,-832.65,0.00014931,2]
[353545390,1739905861072,-541.25,0.00014931,2]
[353545392,1739905861082,-528.02,0.00014931,2]
[353545394,1739905861091,-500.0,0.00014973,2]
[353545396,1739905861100,-588498.88157576,0.00015,2]
[353545398,1739905861110,-352.20477158,0.00015,4]
[353545400,1739905861120,-154.162394,0.00015,2]
[353545402,1739905861130,-613.187978,0.00015,2]
[353545404,1739905861140,-613.187978,0.00015,2]
[353545407,1739905861151,-151.0,0.00015,2]
[353545409,1739905861161,-267.607392,0.00015,2]
[353545411,1739905861171,-267.607392,0.00015,2]
[353545413,1739905861181,-151.0,0.00015,2]
[353545415,1739905861191,-323.68,0.00015013,2]
[353545417,1739905861200,-584.67,0.00015013,2]
[353545419,1739905861214,-786.15,0.00015013,2]
[353545421,1739905861225,-500.0,0.00015013,2]
[353545423,1739905861235,-567.13,0.00015013,2]
[353545425,1739905861244,-500.0,0.00015013,2]
[353545427,1739905861254,-500.0,0.00015013,2]
[353545428,1739905861263,-500.0,0.00015013,2]
[353545429,1739905861272,-606.93,0.00015013,2]
[353545430,1739905861281,-500.0,0.00015013,2]
[353545431,1739905861290,-500.0,0.00015013,2]
[353545432,1739905861300,-500.0,0.00015013,2]
[353545433,1739905861310,-778.97,0.00015013,2]
[353545434,1739905861319,-500.0,0.00015013,2]
[353545435,1739905861328,-227.08,0.00015013,2]
[353545436,1739905861338,-5674.76,0.00015013,2]
[353545437,1739905861348,-500.0,0.00015013,2]
[353545438,1739905861357,-500.0,0.00015013,2]
[353545439,1739905861366,-500.0,0.00015013,2]
[353545440,1739905861376,-536.89,0.00015013,2]
[353545441,1739905861386,-2790.27,0.00015013,2]
[353545442,1739905861396,-1226.03,0.00015013,2]
[353545443,1739905861407,-647.03,0.00015013,2]
[353545444,1739905861416,-647.39,0.00015013,2]
[353545445,1739905861425,-1260.23,0.00015013,2]
[353545446,1739905861435,-517.07,0.00015013,2]
[353545447,1739905861445,-500.0,0.00015013,2]
[353545448,1739905861454,-1026.38,0.00015013,2]
[353545449,1739905861463,-8379.46,0.00015013,2]
[353545450,1739905861473,-588.93,0.00015013,2]
[353545451,1739905861483,-1252.55,0.00015013,2]
[353545452,1739905861492,-1497.2,0.00015013,2]
[353545453,1739905861503,-500.0,0.00015013,2]
[353545454,1739905861513,-708.02,0.00015013,2]
[353545455,1739905861522,-2867.07,0.00015013,2]
[353545456,1739905861532,-500.0,0.00015013,2]
[353545457,1739905861542,-565.05,0.00015013,2]
[353545458,1739905861552,-26636.36,0.00015013,2]
[353545459,1739905861562,-783.28,0.00015013,2]
[353545460,1739905861572,-500.0,0.00015013,2]
[353545461,1739905861581,-1714.88,0.00015013,2]
[353545462,1739905861591,-978.2,0.00015013,2]
[353545463,1739905861600,-832.65,0.00015013,2]
[353545464,1739905861610,-541.25,0.00015013,2]
[353545465,1739905861620,-528.02,0.00015013,2]
[353545466,1739905861629,-584.67,0.00015095,2]
[353545467,1739905861639,-786.15,0.00015095,2]
[353545469,1739905861649,-500.0,0.00015095,2]
[353545471,1739905861658,-567.13,0.00015095,2]
[353545473,1739905861668,-500.0,0.00015095,2]
[353545475,1739905861678,-500.0,0.00015095,2]
[353545477,1739905861689,-176.56,0.00015095,2]
[353545479,1739905861698,-606.93,0.00015095,2]
[353545481,1739905861707,-500.0,0.00015095,2]
[353545483,1739905861717,-500.0,0.00015095,2]
[353545485,1739905861726,-500.0,0.00015095,2]
[353545487,1739905861736,-778.97,0.00015095,2]
[353545488,1739905861746,-215.73,0.00015095,2]
[353545490,1739905861755,-5674.76,0.00015095,2]
[353545492,1739905861766,-500.0,0.00015095,2]
[353545494,1739905861776,-500.0,0.00015095,2]
[353545496,1739905861785,-500.0,0.00015095,2]
[353545497,1739905861794,-536.89,0.00015095,2]
[353545499,1739905861804,-2790.27,0.00015095,2]
[353545501,1739905861813,-1226.03,0.00015095,2]
[353545503,1739905861823,-647.03,0.00015095,2]
[353545504,1739905861833,-647.39,0.00015095,2]
[353545506,1739905861843,-1260.23,0.00015095,2]
[353545508,1739905861852,-517.07,0.00015095,2]
[353545510,1739905861861,-240.66756905,0.00015095,2]
[353545512,1739905861870,-1026.38,0.00015095,2]
[353545513,1739905861880,-8379.46,0.00015095,2]
[353545514,1739905861891,-588.93,0.00015095,2]
[353545516,1739905861900,-1252.55,0.00015095,2]
[353545518,1739905861910,-1497.2,0.00015095,2]
[353545519,1739905861920,-500.0,0.00015095,2]
[353545520,1739905861929,-708.02,0.00015095,2]
[353545521,1739905861939,-2867.07,0.00015095,2]
[353545522,1739905861949,-500.0,0.00015095,2]
[353545523,1739905861959,-565.05,0.00015095,2]
[353545524,1739905861970,-26636.36,0.00015095,2]
[353545525,1739905861980,-783.28,0.00015095,2]
[353545526,1739905861989,-476.88297688,0.00015095,2]
[353545527,1739905861998,-1714.88,0.00015095,2]
[353545528,1739905862008,-978.2,0.00015095,2]
[353545529,1739905862017,-832.65,0.00015095,2]
[353545530,1739905862026,-541.25,0.00015095,2]
[353545531,1739905862036,-528.02,0.00015095,2]
[353545532,1739905862045,-494.93467528,0.00015119,2]
[353545533,1739905862055,-151.0,0.00015132,2]
[353545534,1739905862065,-584.67,0.00015178,2]
[353545535,1739905862074,-786.15,0.00015178,2]
[353545536,1739905862084,-500.0,0.00015178,2]
[353545537,1739905862094,-567.13,0.00015178,2]
[353545538,1739905862104,-369.21,0.00015178,2]
[353545539,1739905862113,-500.0,0.00015178,2]
[353545540,1739905862122,-606.93,0.00015178,2]
[353545541,1739905862132,-617.56,0.00015178,2]
[353545542,1739905862141,-500.0,0.00015178,2]
[353545543,1739905862151,-500.0,0.00015178,2]
[353545544,1739905862159,-778.97,0.00015178,2]
[353545545,1739905862170,-5674.76,0.00015178,2]
[353545546,1739905862178,-500.0,0.00015178,2]
[353545547,1739905862188,-500.0,0.00015178,2]
[353545548,1739905862197,-500.0,0.00015178,2]
[353545549,1739905862209,-536.89,0.00015178,2]
[353545550,1739905862219,-2790.27,0.00015178,2]
[353545551,1739905862228,-1226.03,0.00015178,2]
[353545552,1739905862238,-647.03,0.00015178,2]
[353545553,1739905862248,-647.39,0.00015178,2]
[353545554,1739905862257,-1260.23,0.00015178,2]
[353545555,1739905862266,-517.07,0.00015178,2]
[353545556,1739905862275,-1026.38,0.00015178,2]
[353545557,1739905862285,-8379.46,0.00015178,2]
[353545558,1739905862297,-588.93,0.00015178,2]
[353545559,1739905862306,-1252.55,0.00015178,2]
[353545560,1739905862315,-1497.2,0.00015178,2]
[353545561,1739905862325,-500.0,0.00015178,2]
[353545562,1739905862335,-708.02,0.00015178,2]
[353545563,1739905862344,-2867.07,0.00015178,2]
[353545564,1739905862354,-500.0,0.00015178,2]
[353545565,1739905862363,-565.05,0.00015178,2]
[353545566,1739905862374,-26636.36,0.00015178,2]
[353545567,1739905862383,-783.28,0.00015178,2]
[353545568,1739905862393,-1714.88,0.00015178,2]
[353545569,1739905862402,-978.2,0.00015178,2]
[353545570,1739905862411,-832.65,0.00015178,2]
[353545571,1739905862422,-541.25,0.00015178,2]
[353545572,1739905862431,-528.02,0.00015178,2]
[353545573,1739905862441,-584.67,0.0001526,2]
[353545574,1739905862450,-786.15,0.0001526,2]
[353545575,1739905862459,-500.0,0.0001526,2]
[353545576,1739905862469,-567.13,0.0001526,2]
[353545577,1739905862478,-500.0,0.0001526,2]
[353545578,1739905862488,-606.93,0.0001526,2]
[353545579,1739905862497,-500.0,0.0001526,2]
[353545580,1739905862507,-500.0,0.0001526,2]
[353545581,1739905862517,-778.97,0.0001526,2]
[353545582,1739905862526,-5674.76,0.0001526,2]
[353545583,1739905862536,-500.0,0.0001526,2]
[353545584,1739905862545,-500.0,0.0001526,2]
[353545585,1739905862555,-179.42,0.0001526,2]
[353545586,1739905862565,-536.89,0.0001526,2]
[353545587,1739905862575,-2790.27,0.0001526,2]
[353545588,1739905862585,-1226.03,0.0001526,2]
[353545589,1739905862595,-647.03,0.0001526,2]
[353545590,1739905862605,-647.39,0.0001526,2]
[353545591,1739905862614,-1260.23,0.0001526,2]
[353545592,1739905862626,-517.07,0.0001526,2]
[353545593,1739905862636,-1026.38,0.0001526,2]
[353545594,1739905862645,-8379.46,0.0001526,2]
[353545595,1739905862656,-588.93,0.0001526,2]
[353545596,1739905862666,-1252.55,0.0001526,2]
[353545597,1739905862675,-1497.2,0.0001526,2]
[353545598,1739905862684,-500.0,0.0001526,2]
[353545599,1739905862693,-708.02,0.0001526,2]
[353545600,1739905862703,-2867.07,0.0001526,2]
[353545601,1739905862713,-500.0,0.0001526,2]
[353545602,1739905862723,-565.05,0.0001526,2]
[353545603,1739905862732,-26636.36,0.0001526,2]
[353545604,1739905862741,-783.28,0.0001526,2]
[353545605,1739905862751,-1714.88,0.0001526,2]
[353545606,1739905862856,-978.2,0.0001526,2]
[353545607,1739905862867,-832.65,0.0001526,2]
[353545608,1739905862877,-541.25,0.0001526,2]
[353545609,1739905862887,-528.02,0.0001526,2]
[353545610,1739905862897,-441.5284998,0.00015277,2]
[353545611,1739905862907,-15104.49056537,0.000153,5]
[353545612,1739905863036,-2222.71554974,0.000153,5]
[353545613,1739905863327,-500.0,0.00013698,2]
[353545614,1739905863339,-500.0,0.00013698,2]
[353545615,1739905863349,-394.12957793,0.00013698,2]
[353545616,1739905863363,-105.87042207,0.00013698,2]
[353545617,1739905863373,-500.0,0.0001378,2]
[353545618,1739905863384,-500.0,0.0001378,2]
[353545619,1739905863394,-500.0,0.0001378,2]
[353545620,1739905863404,-264.12957793,0.00013863,2]
[353545621,1739905863472,-500.0,0.00013698,2]
[353545622,1739905863488,-500.0,0.0001378,2]
[353545623,1739905863498,-235.87042207,0.00013863,2]
[353545624,1739905863509,-500.0,0.00013863,2]
[353545625,1739905863520,-285.03264856,0.00013863,2]
[353545626,1739905863532,-327.04735144,0.00013863,2]
[353545627,1739905863542,-46.95264856,0.00013863,2]
[353545628,1739905863556,-453.04735144,0.00013863,2]
[353545629,1739905863567,-500.0,0.00013945,2]
[353545630,1739905863577,-500.0,0.00013945,2]
[353545631,1739905863588,-500.0,0.00014027,2]
[353545632,1739905863598,-500.0,0.00014027,2]
[353545633,1739905863608,-500.0,0.00014109,2]
[353545634,1739905863617,-500.0,0.00014109,2]
[353545635,1739905863627,-500.0,0.00014191,2]
[353545636,1739905863636,-500.0,0.00014191,2]
[353545637,1739905863646,-500.0,0.00014273,2]
[353545638,1739905863656,-247.98,0.00014273,2]
[353545639,1739905863667,-500.0,0.00014356,2]
[353545640,1739905863678,-500.0,0.00014438,2]
[353545641,1739905863689,-500.0,0.0001452,2]
[353545642,1739905863699,-500.0,0.00014602,2]
[353545643,1739905863712,-182.01,0.00014684,2]
[353545644,1739905863722,-1810.39,0.00014849,2]
[353545645,1739905863732,-1810.39,0.00014931,2]
[353545646,1739905863742,-1810.39,0.00015013,2]
[353545647,1739905863753,-1810.39,0.00015095,2]
[353545648,1739905863765,-1810.39,0.00015178,2]
[353545649,1739905863775,-1810.39,0.0001526,2]
[353545650,1739905863785,-41152.61431968,0.000153,5]
[353545651,1739905921416,398.821238,9.041e-05,2]
[353545684,1739906835133,-281.20317066,0.00011595,2]
[353545686,1739906838122,-678.59520341,0.00011595,2]
[353545688,1739906846146,-511.80090216,0.00011595,2]
[353545689,1739906846167,-414.2976734,0.00012149,2]
[353545690,1739906846189,-345.21024581,0.00012455,2]
[353545691,1739906847147,-190.71357229,0.00012455,2]
[353545692,1739906847168,-257.0,0.00012718,2]
[353545693,1739906847190,-473.20246963,0.00012719,2]
[353545746,1739907021948,378.880176,9.041e-05,2]
[353545767,1739907039346,-1678.4883874,0.00012456,2]
[353545768,1739907039355,-630.37495068,0.000127,7]
[353545769,1739907039365,-300.0,0.00012718,2]
[353545770,1739907039374,-10750.55527158,0.00012719,2]
[353545801,1739907040740,-9000.012096,0.00012719,2]
[353545802,1739907040798,-1239.22727149,0.00012719,2]
[353545803,1739907040808,-900.0,0.00013068,2]
[353545804,1739907040819,-506.3560349,0.0001312,2]
[353545805,1739907040830,-227.14737883,0.00013695,2]
[353545806,1739907040839,-162.10836619,0.00013695,2]
[353545807,1739907040849,-500.0,0.00013695,2]
[353545808,1739907040859,-500.0,0.00013695,2]
[353545809,1739907040870,-500.0,0.00013695,2]
[353545810,1739907040880,-500.0,0.00013695,2]
[353545811,1739907040894,-428.84172835,0.00013695,2]
[353545812,1739907040904,-500.0,0.00013695,2]
[353545813,1739907040913,-500.0,0.00013695,2]
[353545814,1739907040923,-500.0,0.00013695,2]
[353545815,1739907040933,-500.0,0.00013695,2]
[353545816,1739907040941,-500.0,0.00013695,2]
[353545817,1739907040951,-500.0,0.00013695,2]
[353545818,1739907040960,-500.0,0.00013695,2]
[353545819,1739907040970,-414.29245401,0.00013695,2]
[353545820,1739907040979,-373.90386166,0.00013695,2]
[353545821,1739907040988,-500.0,0.00013695,2]
[353545822,1739907040999,-500.0,0.00013695,2]
[353545823,1739907041008,-500.0,0.00013695,2]
[353545824,1739907041017,-500.0,0.00013695,2]
[353545825,1739907041027,-500.0,0.00013697,2]
[353545826,1739907041036,-167.19859896,0.00013697,2]
[353545827,1739907041046,-419.05641133,0.00013697,2]
[353545828,1739907041055,-500.0,0.00013698,2]
[353545829,1739907041064,-500.0,0.00013698,2]
[353545830,1739907041074,-500.0,0.00013698,2]
[353545831,1739907041083,-450.29929733,0.00013698,2]
[353545832,1739907041092,-500.0,0.00013698,2]
[353545833,1739907041102,-229.34375734,0.00013698,2]
[353545834,1739907041111,-500.0,0.00013698,2]
[353545835,1739907041120,-500.0,0.00013698,2]
[353545836,1739907041130,-508.46,0.00013698,2]
[353545837,1739907041142,-500.0,0.00013698,2]
[353545838,1739907041151,-500.0,0.00013698,2]
[353545839,1739907041160,-500.0,0.00013698,2]
[353545840,1739907041170,-500.0,0.00013698,2]
[353545841,1739907041179,-500.0,0.00013698,2]
[353545842,1739907041189,-500.0,0.00013698,2]
[353545843,1739907041198,-500.0,0.00013698,2]
[353545844,1739907041207,-500.0,0.00013698,2]
[353545845,1739907041217,-500.0,0.00013698,2]
[353545846,1739907041226,-500.0,0.00013698,2]
[353545847,1739907041235,-500.0,0.00013698,2]
[353545848,1739907041245,-500.0,0.00013698,2]
[353545849,1739907041254,-500.0,0.00013698,2]
[353545850,1739907041264,-500.0,0.00013698,2]
[353545851,1739907041273,-500.0,0.00013698,2]
[353545852,1739907041282,-500.0,0.00013698,2]
[353545853,1739907041291,-500.0,0.00013698,2]
[353545854,1739907041301,-500.0,0.00013698,2]
[353545855,1739907041310,-422.94000722,0.00013698,2]
[353545856,1739907041319,-500.0,0.00013698,2]
[353545857,1739907041328,-500.0,0.00013698,2]
[353545858,1739907041337,-500.0,0.00013698,2]
[353545859,1739907041346,-500.0,0.00013698,2]
[353545860,1739907041356,-500.0,0.00013698,2]
[353545861,1739907041365,-500.0,0.00013698,2]
[353545862,1739907041374,-500.0,0.00013698,2]
[353545863,1739907041384,-500.0,0.00013698,2]
[353545864,1739907041393,-500.0,0.00013698,2]
[353545865,1739907041403,-500.0,0.00013698,2]
[353545866,1739907041411,-500.0,0.00013698,2]
[353545867,1739907041421,-500.0,0.00013698,2]
[353545868,1739907041430,-500.0,0.00013698,2]
[353545869,1739907041439,-500.0,0.00013698,2]
[353545870,1739907041448,-500.0,0.00013698,2]
[353545871,1739907041458,-500.0,0.00013698,2]
[353545872,1739907041467,-346.69931981,0.00013698,2]
[353545873,1739907041476,-500.0,0.00013698,2]
[353545874,1739907041485,-500.0,0.00013698,2]
[353545875,1739907041494,-547.82,0.00013698,2]
[353545876,1739907041503,-500.0,0.00013698,2]
[353545877,1739907041512,-500.0,0.00013698,2]
[353545878,1739907041521,-500.0,0.00013698,2]
[353545879,1739907041531,-500.0,0.00013698,2]
[353545880,1739907041540,-500.0,0.00013698,2]
[353545881,1739907041549,-500.0,0.00013698,2]
[353545882,1739907041558,-500.0,0.00013698,2]
[353545883,1739907041567,-500.0,0.00013698,2]
[353545884,1739907041577,-500.0,0.00013698,2]
[353545885,1739907041586,-232.35849359,0.00013698,5]